[Event "Titled Tuesday Blitz May 18 2021"]
[White "Xiong, Jeffery"]
[Black "Navalgund, Niranjan"]
[WhiteFideId "2047640"]
[BlackFideId "5030854"]
[WhiteElo "2724"]
[BlackElo "2290"]
[Result "1-0"]
[Round "01"]
[TimeControl "180+1"]
[Date "2021.05.18"]
[WhiteClock "0:00:19"]
[BlackClock "0:00:34"]

1. d4 {[%clk 0:02:44]}  Nf6 {[%clk 0:03:00]} 2. c4 {[%clk 0:02:44]}  e6 {[%clk 0:02:59]} 3. Nc3 {[%clk 0:02:44]}  Bb4 {[%clk 0:02:58]} 4. Nf3 {[%clk 0:02:45]}  O-O {[%clk 0:02:47]} 5. Bg5 {[%clk 0:02:44]}  d6 {[%clk 0:02:44]} 6. Rc1 {[%clk 0:02:39]}  Nbd7 {[%clk 0:02:43]} 7. e3 {[%clk 0:02:39]}  h6 {[%clk 0:02:41]} 8. Bh4 {[%clk 0:02:38]}  e5 {[%clk 0:02:40]} 9. Be2 {[%clk 0:02:38]}  Qe8 {[%clk 0:02:28]} 10. O-O {[%clk 0:02:36]}  Bxc3 {[%clk 0:02:28]} 11. Rxc3 {[%clk 0:02:36]}  Ne4 {[%clk 0:02:29]} 12. Rc1 {[%clk 0:02:34]}  f5 {[%clk 0:02:30]} 13. h3 {[%clk 0:02:06]}  g5 {[%clk 0:02:04]} 14. Bg3 {[%clk 0:02:05]}  Nxg3 {[%clk 0:01:55]} 15. fxg3 {[%clk 0:02:06]}  e4 {[%clk 0:01:55]} 16. Nd2 {[%clk 0:02:03]}  Nf6 {[%clk 0:01:56]} 17. b4 {[%clk 0:01:47]}  Bd7 {[%clk 0:01:43]} 18. Kh2 {[%clk 0:01:45]}  Qg6 {[%clk 0:01:40]} 19. Nb3 {[%clk 0:01:43]}  Kh8 {[%clk 0:01:38]} 20. d5 {[%clk 0:01:42]}  Rf7 {[%clk 0:01:34]} 21. c5 {[%clk 0:01:40]}  Raf8 {[%clk 0:01:33]} 22. cxd6 {[%clk 0:01:39]}  cxd6 {[%clk 0:01:34]} 23. Rc7 {[%clk 0:01:39]}  Ba4 {[%clk 0:01:30]} 24. Rxf7 {[%clk 0:01:38]}  Rxf7 {[%clk 0:01:30]} 25. Qd4 {[%clk 0:01:38]}  a6 {[%clk 0:01:27]} 26. Na5 {[%clk 0:01:37]}  Kh7 {[%clk 0:01:22]} 27. Rc1 {[%clk 0:01:00]}  Rg7 {[%clk 0:01:12]} 28. Rc8 {[%clk 0:00:45]}  f4 {[%clk 0:01:10]} 29. Rf8 {[%clk 0:00:45]}  fxg3+ {[%clk 0:01:01]} 30. Kxg3 {[%clk 0:00:46]}  Rf7 {[%clk 0:00:58]} 31. Rxf7+ {[%clk 0:00:38]}  Qxf7 {[%clk 0:00:59]} 32. Nxb7 {[%clk 0:00:38]}  Qxd5 {[%clk 0:00:47]} 33. Qxf6 {[%clk 0:00:34]}  Qxb7 {[%clk 0:00:47]} 34. Qxd6 {[%clk 0:00:29]}  Bb5 {[%clk 0:00:44]} 35. Bg4 {[%clk 0:00:28]}  Qf7 {[%clk 0:00:41]} 36. Qe5 {[%clk 0:00:25]}  Bd7 {[%clk 0:00:39]} 37. Qxe4+ {[%clk 0:00:23]}  Kg8 {[%clk 0:00:39]} 38. Qa8+ {[%clk 0:00:22]}  Kh7 {[%clk 0:00:38]} 39. Qb7 {[%clk 0:00:20]}  Be8 {[%clk 0:00:34]} 40. Qxf7+ {[%clk 0:00:19]}  Bxf7 {[%clk 0:00:35]} 41. a4 {[%clk 0:00:19]}  Bc4 {[%clk 0:00:35]} 42. Kf2 {[%clk 0:00:18]}  Kg6 {[%clk 0:00:35]} 43. Be2 {[%clk 0:00:18]}  Bb3 {[%clk 0:00:34]} 44. a5 {[%clk 0:00:19]} 1-0


[Site "https://www.chess.com"]

[Event "Titled Tuesday Blitz May 18 2021"]
[White "Zhukova, Natalia"]
[Black "Sadhwani, Raunak"]
[WhiteFideId "14101513"]
[BlackFideId "35093487"]
[WhiteElo "2369"]
[BlackElo "2514"]
[Result "0-1"]
[Round "01"]
[TimeControl "180+1"]
[Date "2021.05.18"]
[WhiteClock "0:00:01"]
[BlackClock "0:00:33"]

1. c4 {[%clk 0:02:52]}  c5 {[%clk 0:03:00]} 2. Nf3 {[%clk 0:02:51]}  Nc6 {[%clk 0:03:01]} 3. d4 {[%clk 0:02:52]}  cxd4 {[%clk 0:03:01]} 4. Nxd4 {[%clk 0:02:52]}  g6 {[%clk 0:03:01]} 5. e4 {[%clk 0:02:52]}  Bg7 {[%clk 0:03:01]} 6. Be3 {[%clk 0:02:53]}  Nf6 {[%clk 0:03:00]} 7. Nc3 {[%clk 0:02:53]}  O-O {[%clk 0:02:59]} 8. Be2 {[%clk 0:02:54]}  d6 {[%clk 0:03:00]} 9. O-O {[%clk 0:02:53]}  Bd7 {[%clk 0:03:00]} 10. h3 {[%clk 0:02:53]}  a5 {[%clk 0:02:58]} 11. Nf3 {[%clk 0:02:49]}  a4 {[%clk 0:02:56]} 12. Rc1 {[%clk 0:02:48]}  Qa5 {[%clk 0:02:54]} 13. Nd2 {[%clk 0:02:26]}  Rfc8 {[%clk 0:02:50]} 14. Nd5 {[%clk 0:02:21]}  Nxd5 {[%clk 0:02:42]} 15. cxd5 {[%clk 0:02:21]}  Nb4 {[%clk 0:02:18]} 16. Nc4 {[%clk 0:02:07]}  Rxc4 {[%clk 0:02:05]} 17. Rxc4 {[%clk 0:01:56]}  b5 {[%clk 0:01:45]} 18. Rd4 {[%clk 0:01:39]}  Nxa2 {[%clk 0:01:23]} 19. Qa1 {[%clk 0:01:07]}  Bxd4 {[%clk 0:01:19]} 20. Bxd4 {[%clk 0:01:07]}  Qd2 {[%clk 0:01:20]} 21. Be3 {[%clk 0:00:38]}  Qxe2 {[%clk 0:01:19]} 22. Qxa2 {[%clk 0:00:39]}  Qd3 {[%clk 0:01:17]} 23. Rc1 {[%clk 0:00:31]}  Rc8 {[%clk 0:01:01]} 24. Qa1 {[%clk 0:00:22]}  Qxe4 {[%clk 0:00:57]} 25. Rxc8+ {[%clk 0:00:20]}  Bxc8 {[%clk 0:00:58]} 26. Qc1 {[%clk 0:00:21]}  Bb7 {[%clk 0:00:58]} 27. Bh6 {[%clk 0:00:10]}  Qxd5 {[%clk 0:00:54]} 28. f3 {[%clk 0:00:04]}  Qc5+ {[%clk 0:00:52]} 29. Qxc5 {[%clk 0:00:04]}  dxc5 {[%clk 0:00:53]} 30. Kf2 {[%clk 0:00:04]}  f6 {[%clk 0:00:49]} 31. Be3 {[%clk 0:00:05]}  c4 {[%clk 0:00:49]} 32. Bc5 {[%clk 0:00:05]}  Kf7 {[%clk 0:00:49]} 33. Ke3 {[%clk 0:00:06]}  e5 {[%clk 0:00:49]} 34. Bb4 {[%clk 0:00:04]}  Ke6 {[%clk 0:00:50]} 35. g3 {[%clk 0:00:03]}  h5 {[%clk 0:00:47]} 36. f4 {[%clk 0:00:03]}  g5 {[%clk 0:00:47]} 37. fxg5 {[%clk 0:00:03]}  fxg5 {[%clk 0:00:47]} 38. h4 {[%clk 0:00:04]}  gxh4 {[%clk 0:00:47]} 39. gxh4 {[%clk 0:00:04]}  Kf5 {[%clk 0:00:48]} 40. Bc5 {[%clk 0:00:05]}  Bc6 {[%clk 0:00:46]} 41. Be7 {[%clk 0:00:05]}  Kg4 {[%clk 0:00:46]} 42. Bf6 {[%clk 0:00:04]}  e4 {[%clk 0:00:40]} 43. Be7 {[%clk 0:00:04]}  Kg3 {[%clk 0:00:37]} 44. Bf6 {[%clk 0:00:03]}  b4 {[%clk 0:00:34]} 45. Be7 {[%clk 0:00:03]}  c3 {[%clk 0:00:34]} 46. bxc3 {[%clk 0:00:03]}  b3 {[%clk 0:00:34]} 47. c4 {[%clk 0:00:01]}  b2 {[%clk 0:00:33]} 0-1


[Site "https://www.chess.com"]

[Event "Titled Tuesday Blitz May 18 2021"]
[White "Abdusattorov, Nodirbek"]
[Black "Suvorov, Alexander"]
[WhiteFideId "14204118"]
[BlackFideId "12977063"]
[WhiteElo "2662"]
[BlackElo "2221"]
[Result "1-0"]
[Round "02"]
[TimeControl "180+1"]
[Date "2021.05.18"]
[WhiteClock "0:00:14"]
[BlackClock "0:00:29"]

1. d4 {[%clk 0:03:00]}  Nf6 {[%clk 0:02:58]} 2. c4 {[%clk 0:03:00]}  e6 {[%clk 0:02:59]} 3. Nf3 {[%clk 0:02:59]}  d5 {[%clk 0:02:58]} 4. Nc3 {[%clk 0:02:58]}  Bb4 {[%clk 0:02:58]} 5. cxd5 {[%clk 0:02:55]}  exd5 {[%clk 0:02:58]} 6. Bg5 {[%clk 0:02:55]}  h6 {[%clk 0:02:58]} 7. Bh4 {[%clk 0:02:55]}  O-O {[%clk 0:02:58]} 8. e3 {[%clk 0:02:55]}  Bf5 {[%clk 0:02:58]} 9. Bd3 {[%clk 0:02:54]}  Bxd3 {[%clk 0:02:55]} 10. Qxd3 {[%clk 0:02:55]}  c6 {[%clk 0:02:51]} 11. O-O {[%clk 0:02:54]}  Nbd7 {[%clk 0:02:44]} 12. Ne5 {[%clk 0:02:53]}  Qe8 {[%clk 0:02:27]} 13. Qf5 {[%clk 0:02:34]}  Bxc3 {[%clk 0:02:14]} 14. bxc3 {[%clk 0:02:34]}  Nxe5 {[%clk 0:02:15]} 15. dxe5 {[%clk 0:02:33]}  Ne4 {[%clk 0:02:15]} 16. f4 {[%clk 0:02:29]}  Nxc3 {[%clk 0:01:48]} 17. Qh5 {[%clk 0:02:12]}  f6 {[%clk 0:01:28]} 18. Qg4 {[%clk 0:01:25]}  fxe5 {[%clk 0:01:28]} 19. f5 {[%clk 0:01:26]}  Qd7 {[%clk 0:01:19]} 20. Qg6 {[%clk 0:01:15]}  Qf7 {[%clk 0:01:12]} 21. Qg4 {[%clk 0:01:10]}  Qd7 {[%clk 0:01:09]} 22. Qg6 {[%clk 0:01:08]}  Qf7 {[%clk 0:01:09]} 23. Qd6 {[%clk 0:01:08]}  Rae8 {[%clk 0:01:02]} 24. g4 {[%clk 0:00:48]}  d4 {[%clk 0:00:42]} 25. exd4 {[%clk 0:00:42]}  exd4 {[%clk 0:00:43]} 26. f6 {[%clk 0:00:42]}  g5 {[%clk 0:00:41]} 27. Bg3 {[%clk 0:00:35]}  Re6 {[%clk 0:00:37]} 28. Qc5 {[%clk 0:00:19]}  Rxf6 {[%clk 0:00:37]} 29. Rxf6 {[%clk 0:00:14]}  Qxf6 {[%clk 0:00:38]} 30. Qc4+ {[%clk 0:00:15]}  Qf7 {[%clk 0:00:36]} 31. Qd3 {[%clk 0:00:14]}  Qf3 {[%clk 0:00:32]} 32. Qg6+ {[%clk 0:00:14]}  Kh8 {[%clk 0:00:29]} 33. Be5+ {[%clk 0:00:14]} 1-0


[Site "https://www.chess.com"]

[Event "Titled Tuesday Blitz May 18 2021"]
[White "Artemiev, Vladislav"]
[Black "Ranindu2003"]
[WhiteFideId "24101605"]
[WhiteElo "2783"]
[BlackElo "2627"]
[Result "1-0"]
[Round "02"]
[TimeControl "180+1"]
[Date "2021.05.18"]
[WhiteClock "0:00:17"]
[BlackClock "0:00:04"]

1. d4 {[%clk 0:03:00]}  Nf6 {[%clk 0:02:59]} 2. c4 {[%clk 0:03:00]}  e6 {[%clk 0:02:59]} 3. Nf3 {[%clk 0:02:59]}  d5 {[%clk 0:02:59]} 4. e3 {[%clk 0:02:59]}  dxc4 {[%clk 0:02:56]} 5. Bxc4 {[%clk 0:02:58]}  a6 {[%clk 0:02:56]} 6. Qe2 {[%clk 0:02:56]}  b5 {[%clk 0:02:56]} 7. Bd3 {[%clk 0:02:56]}  Bb7 {[%clk 0:02:56]} 8. O-O {[%clk 0:02:52]}  Nbd7 {[%clk 0:02:55]} 9. a4 {[%clk 0:02:49]}  b4 {[%clk 0:02:54]} 10. e4 {[%clk 0:02:46]}  Be7 {[%clk 0:02:45]} 11. Nbd2 {[%clk 0:02:19]}  c5 {[%clk 0:02:37]} 12. e5 {[%clk 0:02:10]}  Nd5 {[%clk 0:02:32]} 13. Ne4 {[%clk 0:02:10]}  cxd4 {[%clk 0:02:26]} 14. Bg5 {[%clk 0:02:08]}  O-O {[%clk 0:01:46]} 15. Nd6 {[%clk 0:02:04]}  Bxg5 {[%clk 0:01:37]} 16. Nxb7 {[%clk 0:02:03]}  Qe7 {[%clk 0:01:37]} 17. g3 {[%clk 0:01:39]}  Bh6 {[%clk 0:00:38]} 18. Nd6 {[%clk 0:01:03]}  f6 {[%clk 0:00:37]} 19. Qe4 {[%clk 0:00:44]}  g6 {[%clk 0:00:32]} 20. Qh4 {[%clk 0:00:44]}  Bg7 {[%clk 0:00:18]} 21. Ne4 {[%clk 0:00:44]}  Nxe5 {[%clk 0:00:10]} 22. Nxe5 {[%clk 0:00:42]}  fxe5 {[%clk 0:00:11]} 23. Qxe7 {[%clk 0:00:42]}  Nxe7 {[%clk 0:00:12]} 24. Ng5 {[%clk 0:00:35]}  Rf6 {[%clk 0:00:09]} 25. Ne4 {[%clk 0:00:27]}  Rff8 {[%clk 0:00:09]} 26. Rac1 {[%clk 0:00:27]}  Nd5 {[%clk 0:00:07]} 27. Rc6 {[%clk 0:00:24]}  Rfe8 {[%clk 0:00:07]} 28. Bxa6 {[%clk 0:00:21]}  b3 {[%clk 0:00:06]} 29. Bc4 {[%clk 0:00:17]}  Rxa4 {[%clk 0:00:04]} 30. Rxe6 {[%clk 0:00:17]} 1-0


[Site "https://www.chess.com"]

[Event "Titled Tuesday Blitz May 18 2021"]
[White "Chiku-Ratte, Olivier-Kenta"]
[Black "Andreikin, Dmitry"]
[WhiteFideId "2614782"]
[BlackFideId "4158814"]
[WhiteElo "2324"]
[BlackElo "2782"]
[Result "1/2-1/2"]
[Round "02"]
[TimeControl "180+1"]
[Date "2021.05.18"]
[WhiteClock "0:00:10"]
[BlackClock "0:00:05"]

1. d4 {[%clk 0:03:00]}  Nf6 {[%clk 0:02:59]} 2. c4 {[%clk 0:02:59]}  e6 {[%clk 0:02:58]} 3. Nf3 {[%clk 0:02:57]}  d5 {[%clk 0:02:55]} 4. Nc3 {[%clk 0:02:57]}  Nbd7 {[%clk 0:02:52]} 5. cxd5 {[%clk 0:02:56]}  exd5 {[%clk 0:02:51]} 6. Bg5 {[%clk 0:02:56]}  c6 {[%clk 0:02:41]} 7. e3 {[%clk 0:02:54]}  Be7 {[%clk 0:02:33]} 8. Bd3 {[%clk 0:02:54]}  O-O {[%clk 0:02:32]} 9. Qc2 {[%clk 0:02:54]}  Re8 {[%clk 0:02:31]} 10. O-O {[%clk 0:02:54]}  h6 {[%clk 0:02:29]} 11. Bh4 {[%clk 0:02:51]}  Ne4 {[%clk 0:02:26]} 12. Bxe7 {[%clk 0:02:51]}  Qxe7 {[%clk 0:02:27]} 13. Nd2 {[%clk 0:02:49]}  Nd6 {[%clk 0:02:22]} 14. Rae1 {[%clk 0:02:48]}  Nb6 {[%clk 0:02:11]} 15. b3 {[%clk 0:02:44]}  Bd7 {[%clk 0:02:02]} 16. Qb2 {[%clk 0:02:38]}  Qg5 {[%clk 0:01:58]} 17. Nf3 {[%clk 0:02:35]}  Qf6 {[%clk 0:01:57]} 18. Ne5 {[%clk 0:02:34]}  Bf5 {[%clk 0:01:54]} 19. Qc2 {[%clk 0:02:32]}  Rad8 {[%clk 0:01:51]} 20. Bxf5 {[%clk 0:02:31]}  Nxf5 {[%clk 0:01:48]} 21. a4 {[%clk 0:02:30]}  Nd7 {[%clk 0:01:38]} 22. Nd3 {[%clk 0:02:24]}  Nf8 {[%clk 0:01:29]} 23. a5 {[%clk 0:02:23]}  Ng6 {[%clk 0:01:27]} 24. Ne2 {[%clk 0:02:13]}  Qg5 {[%clk 0:01:16]} 25. a6 {[%clk 0:02:03]}  bxa6 {[%clk 0:00:52]} 26. Qxc6 {[%clk 0:01:58]}  Re6 {[%clk 0:00:52]} 27. Qc7 {[%clk 0:01:53]}  Nfh4 {[%clk 0:00:43]} 28. Ng3 {[%clk 0:01:34]}  Rde8 {[%clk 0:00:39]} 29. f4 {[%clk 0:01:31]}  Qe7 {[%clk 0:00:32]} 30. Qxe7 {[%clk 0:01:29]}  Nxe7 {[%clk 0:00:33]} 31. Nc5 {[%clk 0:01:23]}  Rb6 {[%clk 0:00:30]} 32. f5 {[%clk 0:01:22]}  g6 {[%clk 0:00:26]} 33. fxg6 {[%clk 0:01:21]}  fxg6 {[%clk 0:00:25]} 34. Nd7 {[%clk 0:01:21]}  Nhf5 {[%clk 0:00:19]} 35. Nxb6 {[%clk 0:01:18]}  axb6 {[%clk 0:00:19]} 36. e4 {[%clk 0:01:07]}  dxe4 {[%clk 0:00:14]} 37. Nxe4 {[%clk 0:01:06]}  Rd8 {[%clk 0:00:13]} 38. g4 {[%clk 0:01:02]}  Nxd4 {[%clk 0:00:08]} 39. Re3 {[%clk 0:01:02]}  Nd5 {[%clk 0:00:06]} 40. Rh3 {[%clk 0:00:56]}  Ne2+ {[%clk 0:00:04]} 41. Kh1 {[%clk 0:00:55]}  Ndf4 {[%clk 0:00:05]} 42. Rhf3 {[%clk 0:00:52]}  g5 {[%clk 0:00:05]} 43. Nf6+ {[%clk 0:00:49]}  Kg7 {[%clk 0:00:05]} 44. Nh5+ {[%clk 0:00:50]}  Kg6 {[%clk 0:00:05]} 45. Ng3 {[%clk 0:00:47]}  Rd2 {[%clk 0:00:04]} 46. Re3 {[%clk 0:00:43]}  Nxg3+ {[%clk 0:00:03]} 47. hxg3 {[%clk 0:00:43]}  Nd3 {[%clk 0:00:04]} 48. Ref3 {[%clk 0:00:30]}  Ne5 {[%clk 0:00:03]} 49. Rf6+ {[%clk 0:00:30]}  Kg7 {[%clk 0:00:04]} 50. Rxb6 {[%clk 0:00:30]}  Nxg4 {[%clk 0:00:04]} 51. Rb7+ {[%clk 0:00:29]}  Kg6 {[%clk 0:00:04]} 52. Rb6+ {[%clk 0:00:29]}  Kh5 {[%clk 0:00:04]} 53. Rc1 {[%clk 0:00:19]}  Nf2+ {[%clk 0:00:04]} 54. Kg1 {[%clk 0:00:20]}  Kg4 {[%clk 0:00:04]} 55. Kf1 {[%clk 0:00:20]}  Kxg3 {[%clk 0:00:04]} 56. Rxh6 {[%clk 0:00:18]}  g4 {[%clk 0:00:03]} 57. Rc3+ {[%clk 0:00:17]}  Rd3 {[%clk 0:00:04]} 58. Rxd3+ {[%clk 0:00:17]}  Nxd3 {[%clk 0:00:05]} 59. Rxa6 {[%clk 0:00:17]}  Kf3 {[%clk 0:00:05]} 60. Rf6+ {[%clk 0:00:17]}  Ke3 {[%clk 0:00:06]} 61. Kg2 {[%clk 0:00:16]}  Kd4 {[%clk 0:00:05]} 62. Rc6 {[%clk 0:00:15]}  Ne5 {[%clk 0:00:04]} 63. Rc1 {[%clk 0:00:14]}  Nd3 {[%clk 0:00:04]} 64. Rc4+ {[%clk 0:00:14]}  Kd5 {[%clk 0:00:04]} 65. Kg3 {[%clk 0:00:14]}  Nc5 {[%clk 0:00:04]} 66. Rb4 {[%clk 0:00:13]}  Nd3 {[%clk 0:00:03]} 67. Rb8 {[%clk 0:00:13]}  Kd4 {[%clk 0:00:04]} 68. Kxg4 {[%clk 0:00:13]}  Kc3 {[%clk 0:00:04]} 69. Kf3 {[%clk 0:00:12]}  Nb4 {[%clk 0:00:04]} 70. Ke3 {[%clk 0:00:11]}  Kxb3 {[%clk 0:00:04]} 71. Kd4 {[%clk 0:00:12]}  Ka3 {[%clk 0:00:04]} 72. Kc4 {[%clk 0:00:12]}  Na2 {[%clk 0:00:03]} 73. Rb1 {[%clk 0:00:11]}  Ka4 {[%clk 0:00:03]} 74. Rb2 {[%clk 0:00:11]}  Ka3 {[%clk 0:00:03]} 75. Rh2 {[%clk 0:00:10]}  Nc1 {[%clk 0:00:02]} 76. Rc2 {[%clk 0:00:09]}  Na2 {[%clk 0:00:02]} 77. Rd2 {[%clk 0:00:07]}  Nc1 {[%clk 0:00:02]} 78. Rg2 {[%clk 0:00:07]}  Na2 {[%clk 0:00:02]} 79. Rg8 {[%clk 0:00:08]}  Kb2 {[%clk 0:00:02]} 80. Rb8+ {[%clk 0:00:06]}  Kc2 {[%clk 0:00:02]} 81. Rh8 {[%clk 0:00:06]}  Nc1 {[%clk 0:00:02]} 82. Rh2+ {[%clk 0:00:06]}  Kd1 {[%clk 0:00:03]} 83. Kc3 {[%clk 0:00:07]}  Ne2+ {[%clk 0:00:03]} 84. Kd3 {[%clk 0:00:07]}  Nc1+ {[%clk 0:00:03]} 85. Ke3 {[%clk 0:00:08]}  Nb3 {[%clk 0:00:04]} 86. Rb2 {[%clk 0:00:08]}  Nc1 {[%clk 0:00:04]} 87. Rd2+ {[%clk 0:00:08]}  Ke1 {[%clk 0:00:04]} 88. Rc2 {[%clk 0:00:08]}  Kd1 {[%clk 0:00:04]} 89. Rc3 {[%clk 0:00:09]}  Na2 {[%clk 0:00:04]} 90. Rd3+ {[%clk 0:00:09]}  Kc2 {[%clk 0:00:04]} 91. Rd2+ {[%clk 0:00:08]}  Kb3 {[%clk 0:00:05]} 92. Rh2 {[%clk 0:00:08]}  Nb4 {[%clk 0:00:04]} 93. Kd4 {[%clk 0:00:08]}  Nc2+ {[%clk 0:00:05]} 94. Kd3 {[%clk 0:00:09]}  Nb4+ {[%clk 0:00:05]} 95. Kd2 {[%clk 0:00:10]}  Kc4 {[%clk 0:00:05]} 96. Rh4+ {[%clk 0:00:10]}  Kc5 {[%clk 0:00:05]} 97. Kc3 {[%clk 0:00:10]}  Nd5+ {[%clk 0:00:05]} 98. Kd3 {[%clk 0:00:11]}  Nb4+ {[%clk 0:00:06]} 99. Ke4 {[%clk 0:00:11]}  Nc6 {[%clk 0:00:06]} 100. Rh5+ {[%clk 0:00:11]}  Kc4 {[%clk 0:00:06]} 101. Rh6 {[%clk 0:00:11]}  Nb4 {[%clk 0:00:06]} 102. Rc6+ {[%clk 0:00:10]}  Nxc6 {[%clk 0:00:05]} 1/2-1/2


[Site "https://www.chess.com"]

[Event "Titled Tuesday Blitz May 18 2021"]
[White "Jobava, Baadur"]
[Black "Vetokhin, Savva"]
[WhiteFideId "13601520"]
[BlackFideId "44144474"]
[WhiteElo "2748"]
[BlackElo "2185"]
[Result "1-0"]
[Round "02"]
[TimeControl "180+1"]
[Date "2021.05.18"]
[WhiteClock "0:00:22"]
[BlackClock "0:00:06"]

1. d4 {[%clk 0:03:00]}  Nf6 {[%clk 0:02:59]} 2. Nc3 {[%clk 0:03:01]}  d5 {[%clk 0:02:58]} 3. Bf4 {[%clk 0:03:01]}  a6 {[%clk 0:02:58]} 4. e3 {[%clk 0:03:01]}  c5 {[%clk 0:02:58]} 5. a3 {[%clk 0:03:00]}  e6 {[%clk 0:02:58]} 6. Nf3 {[%clk 0:03:00]}  Nc6 {[%clk 0:02:58]} 7. h3 {[%clk 0:02:58]}  Bd6 {[%clk 0:02:57]} 8. dxc5 {[%clk 0:02:58]}  Bxc5 {[%clk 0:02:54]} 9. Bd3 {[%clk 0:02:58]}  O-O {[%clk 0:02:54]} 10. O-O {[%clk 0:02:58]}  b5 {[%clk 0:02:55]} 11. e4 {[%clk 0:02:53]}  dxe4 {[%clk 0:02:49]} 12. Nxe4 {[%clk 0:02:52]}  Nxe4 {[%clk 0:02:49]} 13. Bxe4 {[%clk 0:02:52]}  Bb7 {[%clk 0:02:50]} 14. c3 {[%clk 0:02:41]}  Qxd1 {[%clk 0:02:46]} 15. Rfxd1 {[%clk 0:02:40]}  Rfd8 {[%clk 0:02:47]} 16. Ne5 {[%clk 0:02:34]}  Na5 {[%clk 0:02:27]} 17. Bxb7 {[%clk 0:02:28]}  Nxb7 {[%clk 0:02:28]} 18. b4 {[%clk 0:02:28]}  Bd6 {[%clk 0:02:24]} 19. a4 {[%clk 0:02:22]}  Bxe5 {[%clk 0:02:24]} 20. Rxd8+ {[%clk 0:02:18]}  Nxd8 {[%clk 0:02:16]} 21. Bxe5 {[%clk 0:02:19]}  Nc6 {[%clk 0:02:16]} 22. f4 {[%clk 0:01:39]}  Nxe5 {[%clk 0:01:30]} 23. fxe5 {[%clk 0:01:40]}  Rb8 {[%clk 0:01:30]} 24. Kf2 {[%clk 0:01:37]}  f6 {[%clk 0:01:26]} 25. Ke3 {[%clk 0:01:33]}  Rc8 {[%clk 0:01:25]} 26. axb5 {[%clk 0:01:31]}  axb5 {[%clk 0:01:23]} 27. Kd3 {[%clk 0:01:18]}  fxe5 {[%clk 0:01:20]} 28. Ra5 {[%clk 0:01:17]}  Rb8 {[%clk 0:01:17]} 29. Ke4 {[%clk 0:01:17]}  Kf7 {[%clk 0:01:16]} 30. Kxe5 {[%clk 0:01:17]}  Rb7 {[%clk 0:01:16]} 31. Kd6 {[%clk 0:01:14]}  Kf6 {[%clk 0:01:10]} 32. Kc6 {[%clk 0:01:09]}  Rb8 {[%clk 0:01:10]} 33. Kc7 {[%clk 0:01:10]}  Re8 {[%clk 0:01:09]} 34. Rxb5 {[%clk 0:01:09]}  e5 {[%clk 0:01:09]} 35. Rb6+ {[%clk 0:00:55]}  Kf5 {[%clk 0:01:01]} 36. Kd7 {[%clk 0:00:55]}  Ra8 {[%clk 0:00:56]} 37. c4 {[%clk 0:00:44]}  e4 {[%clk 0:00:55]} 38. g4+ {[%clk 0:00:43]}  Kf4 {[%clk 0:00:45]} 39. b5 {[%clk 0:00:43]}  Ra7+ {[%clk 0:00:43]} 40. Kd8 {[%clk 0:00:43]}  Ra8+ {[%clk 0:00:43]} 41. Kc7 {[%clk 0:00:42]}  Re8 {[%clk 0:00:42]} 42. Ra6 {[%clk 0:00:41]}  e3 {[%clk 0:00:42]} 43. Ra1 {[%clk 0:00:41]}  e2 {[%clk 0:00:33]} 44. Re1 {[%clk 0:00:41]}  Ke3 {[%clk 0:00:32]} 45. b6 {[%clk 0:00:40]}  Kd2 {[%clk 0:00:25]} 46. Rxe2+ {[%clk 0:00:40]}  Kxe2 {[%clk 0:00:26]} 47. c5 {[%clk 0:00:39]}  Kd3 {[%clk 0:00:26]} 48. b7 {[%clk 0:00:34]}  Kc4 {[%clk 0:00:26]} 49. Kb6 {[%clk 0:00:33]}  Kd5 {[%clk 0:00:20]} 50. c6 {[%clk 0:00:34]}  Re6 {[%clk 0:00:17]} 51. b8=Q {[%clk 0:00:33]}  Rxc6+ {[%clk 0:00:18]} 52. Kb5 {[%clk 0:00:30]}  Rc5+ {[%clk 0:00:14]} 53. Kb4 {[%clk 0:00:30]}  Rc4+ {[%clk 0:00:14]} 54. Kb3 {[%clk 0:00:30]}  Rc1 {[%clk 0:00:13]} 55. Qg8+ {[%clk 0:00:27]}  Kd6 {[%clk 0:00:13]} 56. Qxg7 {[%clk 0:00:26]}  Rc7 {[%clk 0:00:08]} 57. Qh6+ {[%clk 0:00:24]}  Ke5 {[%clk 0:00:07]} 58. Qg5+ {[%clk 0:00:24]}  Ke6 {[%clk 0:00:06]} 59. Qf5+ {[%clk 0:00:23]}  Kd6 {[%clk 0:00:07]} 60. Qf4+ {[%clk 0:00:24]}  Kc6 {[%clk 0:00:07]} 61. h4 {[%clk 0:00:24]}  Rg7 {[%clk 0:00:06]} 62. Qf6+ {[%clk 0:00:22]} 1-0


[Site "https://www.chess.com"]

[Event "Titled Tuesday Blitz May 18 2021"]
[White "Nakamura, Hikaru"]
[Black "Pert, Richard G"]
[WhiteFideId "2016192"]
[BlackFideId "404748"]
[WhiteElo "2900"]
[BlackElo "2441"]
[Result "1-0"]
[Round "02"]
[TimeControl "180+1"]
[Date "2021.05.18"]
[WhiteClock "0:01:35"]
[BlackClock "0:00:05"]

1. Nf3 {[%clk 0:03:00]}  d5 {[%clk 0:02:59]} 2. e3 {[%clk 0:03:00]}  Nf6 {[%clk 0:02:58]} 3. c4 {[%clk 0:03:00]}  e6 {[%clk 0:02:57]} 4. Nc3 {[%clk 0:03:00]}  a6 {[%clk 0:02:54]} 5. b3 {[%clk 0:02:58]}  c5 {[%clk 0:02:52]} 6. Bb2 {[%clk 0:02:57]}  Nc6 {[%clk 0:02:53]} 7. cxd5 {[%clk 0:02:57]}  exd5 {[%clk 0:02:52]} 8. d4 {[%clk 0:02:58]}  cxd4 {[%clk 0:02:47]} 9. Nxd4 {[%clk 0:02:57]}  Bd6 {[%clk 0:02:47]} 10. Be2 {[%clk 0:02:57]}  O-O {[%clk 0:02:46]} 11. O-O {[%clk 0:02:57]}  Re8 {[%clk 0:02:35]} 12. Rc1 {[%clk 0:02:54]}  Nxd4 {[%clk 0:02:23]} 13. Qxd4 {[%clk 0:02:51]}  Be5 {[%clk 0:02:22]} 14. Qh4 {[%clk 0:02:32]}  Be6 {[%clk 0:02:09]} 15. Na4 {[%clk 0:02:30]}  Bxb2 {[%clk 0:02:00]} 16. Nxb2 {[%clk 0:02:30]}  Ne4 {[%clk 0:01:45]} 17. Qxd8 {[%clk 0:02:29]}  Raxd8 {[%clk 0:01:46]} 18. Bf3 {[%clk 0:02:24]}  Nd2 {[%clk 0:01:40]} 19. Rfd1 {[%clk 0:02:24]}  Nxf3+ {[%clk 0:01:40]} 20. gxf3 {[%clk 0:02:25]}  Kf8 {[%clk 0:01:32]} 21. Kf1 {[%clk 0:02:15]}  d4 {[%clk 0:01:15]} 22. e4 {[%clk 0:02:15]}  Rc8 {[%clk 0:00:54]} 23. Ke2 {[%clk 0:02:09]}  Ke7 {[%clk 0:00:53]} 24. Kd3 {[%clk 0:02:04]}  Red8 {[%clk 0:00:47]} 25. Rxc8 {[%clk 0:02:03]}  Rxc8 {[%clk 0:00:47]} 26. Rd2 {[%clk 0:01:59]}  Rc3+ {[%clk 0:00:40]} 27. Ke2 {[%clk 0:01:56]}  g5 {[%clk 0:00:33]} 28. Rxd4 {[%clk 0:01:53]}  g4 {[%clk 0:00:33]} 29. Rd3 {[%clk 0:01:43]}  Rc2+ {[%clk 0:00:31]} 30. Rd2 {[%clk 0:01:43]}  gxf3+ {[%clk 0:00:31]} 31. Ke3 {[%clk 0:01:43]}  Rc3+ {[%clk 0:00:30]} 32. Kf4 {[%clk 0:01:43]}  b5 {[%clk 0:00:25]} 33. Nd1 {[%clk 0:01:43]}  Rc1 {[%clk 0:00:20]} 34. Kxf3 {[%clk 0:01:42]}  h5 {[%clk 0:00:21]} 35. Ne3 {[%clk 0:01:41]}  Rh1 {[%clk 0:00:18]} 36. Kg2 {[%clk 0:01:40]}  Ra1 {[%clk 0:00:17]} 37. f4 {[%clk 0:01:38]}  Re1 {[%clk 0:00:15]} 38. Kf3 {[%clk 0:01:38]}  Bg4+ {[%clk 0:00:13]} 39. Nxg4 {[%clk 0:01:34]}  hxg4+ {[%clk 0:00:14]} 40. Kxg4 {[%clk 0:01:34]}  Rxe4 {[%clk 0:00:14]} 41. Kf3 {[%clk 0:01:35]}  Rb4 {[%clk 0:00:06]} 42. Ke3 {[%clk 0:01:35]}  a5 {[%clk 0:00:05]} 43. Rd4 {[%clk 0:01:35]} 1-0


[Site "https://www.chess.com"]